[Event "CCT Julius Baer-D3 2024"]
[Site "Online"]
[Date "2024.09.27"]
[Round "2.1"]
[White "Navara, David"]
[Black "Bharath Subramaniyam H"]
[Result "1/2-1/2"]
[ECO "E44"]
[WhiteElo "2681"]
[BlackElo "2561"]
[Annotator "TA"]
[PlyCount "168"]
[EventDate "2024.09.25"]
[EventType "swiss"]
[EventCountry "NET"]
[SourceTitle "playchess.com"]
[Source "ChessBase"]
[SourceQuality "1"]
[TimeControl "600+2"]

{[%evp 98,168,0,-11,-25,-125,0,-42,-8,-8,-8,-29958,0,0,0,0,35,24,44,44,44,44,46,47,51,52,54,57,69,57,69,69,69,69,68,35,45,51,46,8,8,8,8,0,10,0,0,0,78,78,78,0,0,0,78,78,78,78,78,78,78,78,78,0,0,0,0,0,0,0,0,0,0]} 1. d4 {[%emt 0:00:02]} Nf6 {[%emt 0:00:04]} 2. c4 {[%emt 0:00:01]} e6 {[%emt 0:00:01]} 3. Nc3 {[%emt 0:00:01]} Bb4 {[%emt 0:00:01]} 4. e3 {[%emt 0:00:01]} b6 {[%emt 0:00:02]} 5. Nge2 {[%emt 0:00:05]} Ne4 {[%emt 0:00:02]} 6. Qc2 {[%emt 0:00:05]} Bb7 {[%emt 0:00:01]} 7. a3 {[%emt 0:00:04]} Bxc3+ {[%emt 0:00:02]} 8. Nxc3 {[%emt 0:00:00]} Nxc3 {[%emt 0:00:00]} 9. Qxc3 {[%emt 0:00:00]} d6 {[%emt 0:00:08] E44: Nimzo-Indian: Rubinstein: 4...b6 5 Ne2.} 10. h4 {[%emt 0:00:20]} Nd7 {[%emt 0:00:31]} 11. f3 $146 {[%emt 0:00:28]} ({Predecessor:} 11. b3 Qe7 12. Bb2 f5 13. f3 Rg8 14. O-O-O O-O-O 15. b4 h6 16. h5 Nf6 17. Bd3 {½-½ Tabatabaei,M (2677)-Theodorou,N (2584) Airthings Masters Div 3 L rapid 2023 (3.2)}) 11... e5 {[%emt 0:00:48]} 12. b4 {[%emt 0:01:17]} O-O {[%emt 0:00:29]} 13. Bb2 {[%emt 0:00:13]} Qe7 {[%emt 0:00:03]} 14. dxe5 {[%emt 0:00:20]} dxe5 {[%emt 0:00:08]} 15. h5 {[%emt 0:01:01]} h6 {[%emt 0:00:14]} 16. c5 {[%emt 0:00:40]} bxc5 {[%emt 0:00:51]} 17. bxc5 {[%emt 0:00:00]} Bc6 {[%emt 0:00:04]} 18. e4 {[%emt 0:00:32]} Rab8 {[%emt 0:00:18]} 19. Rc1 {[%emt 0:00:09]} Qg5 {[%emt 0:01:11]} 20. Kf2 {[%emt 0:00:53]} Nxc5 {[%emt 0:01:03]} 21. Rc2 {[%emt 0:00:26]} Bxe4 {[%emt 0:01:25]} 22. Qxc5 {[%emt 0:00:02]} Bxc2 {[%emt 0:00:02]} 23. Qxc2 {[%emt 0:00:00]} Rfd8 {[%emt 0:00:06]} 24. Bc1 {[%emt 0:00:19]} Qf6 {[%emt 0:00:17]} 25. Be2 {[%emt 0:00:19]} Qe7 {[%emt 0:00:50]} 26. a4 {[%emt 0:00:36]} Rd4 {[%emt 0:00:09]} 27. Be3 {[%emt 0:00:21]} Rh4 {[%emt 0:00:01]} 28. Rc1 {[%emt 0:01:05]} Rxh5 {[%emt 0:00:05]} 29. Qxc7 {[%emt 0:00:18]} Qh4+ {[%emt 0:00:05]} 30. Kf1 {[%emt 0:00:01]} Rb2 {[%emt 0:00:30]} 31. Qc8+ {[%emt 0:00:43]} Kh7 {[%emt 0:00:01]} 32. Bd3+ {[%emt 0:00:00]} g6 {[%emt 0:00:27]} 33. Bxg6+ {[%emt 0:00:01]} Kg7 {[%emt 0:00:13]} 34. Bc2 {[%emt 0:00:06]} Qh1+ {[%emt 0:00:17]} 35. Kf2 {[%emt 0:00:20]} Qh4+ {[%emt 0:00:02]} 36. Kf1 {[%emt 0:00:01]} Qh1+ {[%emt 0:00:02]} 37. Bg1 {[%emt 0:00:03]} Rg5 {[%emt 0:00:03]} 38. Qh3 {[%emt 0:00:01]} Qxh3 {[%emt 0:00:03]} 39. gxh3 {[%emt 0:00:00]} Rg3 {[%emt 0:00:18]} 40. Be4 {[%emt 0:00:21]} a6 {[%emt 0:00:11]} 41. Bf2 {[%emt 0:00:06]} Rxh3 {[%emt 0:00:03]} 42. Kg2 {[%emt 0:00:01]} Rh5 {[%emt 0:00:01]} 43. Rc2 {[%emt 0:00:02]} Rg5+ {[%emt 0:00:02]} 44. Kf1 {[%emt 0:00:02]} Rb1+ {[%emt 0:00:09]} 45. Ke2 {[%emt 0:00:01]} Ra1 {[%emt 0:00:01]} 46. Bc6 {[%emt 0:00:03]} Rg6 {[%emt 0:00:01]} 47. f4 {[%emt 0:00:02]} Re6 {[%emt 0:00:05]} 48. Bd5 {[%emt 0:00:02]} Rd6 {[%emt 0:00:02]} 49. Bc4 {[%emt 0:00:02]} exf4 {[%emt 0:00:02]} 50. Kf3 {[%emt 0:00:03]} Rxa4 {[%emt 0:00:02]} 51. Be2 {[%emt 0:00:02]} (51. Bc5 $11 {remains equal.} Rd1 52. Kxf4) 51... Rf6 {[%emt 0:00:03]} ({Black should try} 51... Ra3+ $17 52. Ke4 Rd8 53. Bd4+ Kh7) 52. Be1 {[%emt 0:00:01]} Rg6 {[%emt 0:00:04]} 53. Rc7 {[%emt 0:00:02]} Ra3+ {[%emt 0:00:01]} 54. Bc3+ $2 {[%emt 0:00:02][%mdl 8192]} (54. Kf2 $11) 54... Kf8 $2 {[%emt 0:00:02]} (54... Rxc3+ $1 {mates} 55. Rxc3 Rg3+ 56. Kxf4 Rxc3 57. Bxa6 h5 58. Kg5 Rh3 59. Be2 h4 60. Bh5 Rh2 61. Kg4 Kf6 62. Kf4 Rg2 63. Bg4 Rxg4+ (63... Rf2+ $2 64. Ke3 $19) (63... Rg3 {gets mated.} 64. Bh5 Rc3 65. Bg4 h3 66. Bf3 h2 67. Bh1 Rc1 68. Bg2 h1=Q 69. Bxh1 Rxh1 70. Ke4 Rd1 71. Ke3 Kf5 72. Ke2 Rd6 73. Ke3 Rd5 74. Kf3 Re5 75. Kg3 Re3+ 76. Kf2 Kf4 77. Kg2 Re2+ 78. Kf1 Kf3 79. Kg1 Kg3 80. Kf1 Re6 81. Kg1 Re1#) 64. Kxg4 Ke5 (64... h3 65. Kxh3 Ke5 66. Kg3 Ke4 67. Kf2 Kf4 68. Kg2 Ke3 69. Kg3 f5 70. Kg2 f4 71. Kf1 Kf3 72. Ke1 Kg2 73. Ke2 f3+ 74. Ke3 f2 75. Kf4 f1=Q+ 76. Ke5 Qb5+ 77. Ke6 Kg3 78. Kf7 Kf4 79. Kg6 Qb6+ 80. Kg7 Kf5 81. Kf8 Kf6 82. Ke8 Qd4 83. Kf8 Qd8#) 65. Kxh4 f5 66. Kg3 Ke4 67. Kf2 Kf4 68. Ke2 Kg3 69. Ke1 Kg2 70. Ke2 f4 71. Kd3 f3 72. Ke3 f2 73. Ke4 f1=Q (73... f1=B 74. Kf5 $11) 74. Ke5 Kf3 75. Ke6 Qb5 76. Kf7 Qd7+ 77. Kg6 Qe7 78. Kf5 Qd6 79. Kg5 Qe6 80. Kh5 Kf4 81. Kh4 Qh6#) 55. Kxf4 $11 {[%emt 0:00:01]} Ra4+ {[%emt 0:00:01]} 56. Bc4 {[%emt 0:00:03]} Re6 {[%emt 0:00:02]} 57. Kf3 {[%emt 0:00:02]} Rxc4 {[%emt 0:00:01]} (57... Re7 {looks sharper.} 58. Rc5 Ke8 59. Bf6 Rb7) 58. Rxc4 {[%emt 0:00:00]} Ke7 {[%emt 0:00:01]} 59. Rc7+ {[%emt 0:00:01]} Ke8 {[%emt 0:00:01]} 60. Kf4 {[%emt 0:00:03]} Kf8 {[%emt 0:00:00]} 61. Kf5 {[%emt 0:00:02]} Ke8 {[%emt 0:00:01]} 62. Bf6 {[%emt 0:00:01]} Kf8 {[%emt 0:00:04]} 63. Rc8+ {[%emt 0:00:03]} Re8 {[%emt 0:00:01]} 64. Bg7+ {[%emt 0:00:00]} Ke7 $1 {[%emt 0:00:00]} 65. Rc7+ {[%emt 0:00:01]} ({Of course not} 65. Rxe8+ Kxe8 66. Bxh6 a5 $11) 65... Kd6 {[%emt 0:00:00]} 66. Rxf7 {[%emt 0:00:02]} Kc6 {[%emt 0:00:01]} 67. Bxh6 {[%emt 0:00:02]} a5 {[%emt 0:00:01]} 68. Bg7 {[%emt 0:00:02]} Kb5 {[%emt 0:00:02]} 69. Be5 {[%emt 0:00:01]} a4 {[%emt 0:00:01]} 70. Ke4 {[%emt 0:00:01]} Rd8 {[%emt 0:00:01]} 71. Bd4 {[%emt 0:00:02]} a3 {[%emt 0:00:14]} 72. Kd3 {[%emt 0:00:03]} Ra8 {[%emt 0:00:01]} (72... Ka4 $11) 73. Rf5+ {[%emt 0:00:06]} Kc6 {[%emt 0:00:01]} 74. Kc4 {[%emt 0:00:02]} (74. Ba1 $16) 74... Ra4+ $1 $11 {[%emt 0:00:03]} 75. Kd3 {[%emt 0:00:03]} a2 {[%emt 0:00:00]} (75... Ra8 $1 $11 {keeps the balance.}) 76. Ba1 $16 {[%emt 0:00:00]} Kb6 {[%emt 0:00:05]} 77. Kc3 {[%emt 0:00:02]} Ra8 {[%emt 0:00:00]} 78. Kb3 {[%emt 0:00:02]} Kc6 {[%emt 0:00:01]} 79. Kb4 {[%emt 0:00:02]} Kd6 {[%emt 0:00:01]} 80. Rf1 {[%emt 0:00:03]} ({White should play} 80. Kc4 $16) 80... Rb8+ $11 {[%emt 0:00:01]} 81. Ka3 {[%emt 0:00:04]} Rb1 {[%emt 0:00:01]} 82. Rf6+ {[%emt 0:00:01]} Ke7 {[%emt 0:00:01]} 83. Kxa2 {[%emt 0:00:02]} Rxa1+ $1 {[%emt 0:00:00]} 84. Kxa1 {[%emt 0:00:00]} Kxf6 {[%emt 0:00:01]} 1/2-1/2

[Event "CCT Julius Baer-D3 2024"]
[Site "Online"]
[Date "2024.09.27"]
[Round "2.1"]
[White "Alekseenko, Kirill"]
[Black "Caruana, Fabiano"]
[Result "0-1"]
[ECO "C50"]
[WhiteElo "2679"]
[BlackElo "2798"]
[Annotator "TA"]
[PlyCount "78"]
[EventDate "2024.09.25"]
[EventType "swiss"]
[EventCountry "NET"]
[SourceTitle "playchess.com"]
[Source "ChessBase"]
[SourceQuality "1"]
[TimeControl "600+2"]

{[%evp 9,78,13,12,11,11,12,16,0,7,0,0,0,21,14,30,25,35,10,43,39,61,60,61,74,58,47,61,41,55,51,31,38,55,0,0,0,0,0,0,0,77,63,104,0,0,-79,-74,-178,-149,-462,-445,-769,-761,-850,-847,-980,-978,-966,-971,-941,-945,-1491,-1464,-1452,-1435,-1517,-1552,-1468,-1251,-1211,-1191]} 1. e4 {[%emt 0:00:03]} e5 {[%emt 0:00:04]} 2. Nf3 {[%emt 0:00:01]} Nc6 {[%emt 0:00:00]} 3. Bc4 {[%emt 0:00:03]} Bc5 {[%emt 0:00:02]} 4. d3 {[%emt 0:00:01]} d6 {[%emt 0:00:04]} 5. a3 {[%emt 0:00:25]} h6 {[%emt 0:00:04]} 6. Nc3 {[%emt 0:00:15]} a6 {[%emt 0:00:03]} 7. Be3 {[%emt 0:00:10]} Nge7 {[%emt 0:00:32]} 8. Bxc5 {[%emt 0:00:55] The position is equal.} dxc5 {[%emt 0:00:00]} 9. Nd5 {[%emt 0:00:00]} Be6 {[%emt 0:00:21]} 10. Ne3 {[%emt 0:00:20]} Qd7 {[%emt 0:00:09]} 11. O-O {[%emt 0:00:13][%cal Ob2b4]} Ng6 {[%emt 0:00:17]} 12. Bxe6 {[%emt 0:00:55]} Qxe6 {[%emt 0:00:02]} 13. g3 {[%emt 0:00:01]} O-O-O {[%emt 0:00:24] [#]} 14. b4 $1 {[%emt 0:00:27]} cxb4 {[%emt 0:01:28]} (14... h5 15. h4) 15. axb4 {[%emt 0:00:00]} Nxb4 {[%emt 0:00:01]} 16. Qb1 {[%emt 0:00:02]} Nc6 {[%emt 0:00:26][%cal Bb4c6,Bc6b8,Bb8d7,Bd7b6][%mdl 32]} 17. Qb2 {[%emt 0:00:14][%mdl 1024] White has compensation.} a5 {[%emt 0:00:04]} 18. Rfb1 {[%emt 0:00:26]} (18. Qb5 $5) 18... b6 {[%emt 0:00:02]} 19. Qb5 {[%emt 0:00:51]} Nge7 {[%emt 0:00:02] Dodges Nd5} 20. c3 {[%emt 0:00:46]} f6 {[%emt 0:00:48]} 21. Ra4 {[%emt 0:00:27]} (21. Nc4 $14) 21... Nb8 $11 {[%emt 0:00:51]} 22. d4 {[%emt 0:00:16] [#] Black must now prevent d5.} (22. Rxa5 bxa5 23. Qxb8+ Kd7 24. Qb5+ Qc6 25. Qxa5 Ra8 26. Nxe5+ (26. Qb4 $2 Rhb8 $19) 26... fxe5 27. Qxe5 Rhb8 28. Rxb8 Rxb8 29. Qxg7 Qg6 30. Qd4+ Qd6 31. Qa4+ Kd8 $19) 22... Qc6 {[%emt 0:00:26]} 23. Qb3 {[%emt 0:00:06] Strongly threatening Rc4.} Qxe4 {[%emt 0:00:55]} 24. Nd2 {[%emt 0:00:02]} Qc6 {[%emt 0:00:18] Prevents Qe6+} (24... Qd3 $1 $11 {keeps the balance.} 25. Ndc4 Nd5 (25... exd4 26. Nxb6+ cxb6 27. Qe6+ Rd7 28. Rc4+ Nbc6 29. Rd1 $11)) 25. Ndc4 $16 {[%emt 0:00:34][%cal Oc4a5] Threatens to win with Nxa5!} Nd7 {[%emt 0:00:25]} 26. Qa3 {[%emt 0:01:24]} ({Better is} 26. Nxa5 $16 bxa5 27. d5 Nxd5 (27... Qa6 $2 28. Rxa5 Qb6 29. Qa2 $18) 28. Nxd5) 26... Rhe8 $1 $11 {[%emt 0:00:04]} 27. Nxa5 {[%emt 0:00:34]} bxa5 $17 {[%emt 0:00:02]} 28. Rc4 {[%emt 0:00:07]} (28. Rxa5 $17 Nb6 29. Rc5) 28... Qa6 $19 {[%emt 0:00:12][%cal Oe7d5]} 29. d5 $2 {[%emt 0:00:21][%mdl 8192] Loses the game.} (29. Qb3 $17) 29... Nb6 {[%emt 0:00:49] Black is clearly winning.} 30. Rxc7+ {[%emt 0:00:07]} (30. Rc5 $142 Nexd5 31. Rxa5) 30... Kxc7 {[%emt 0:00:02]} 31. Qc5+ {[%emt 0:00:02]} Kb7 {[%emt 0:00:09] ...Rd7 would now be deadly.} 32. Nc4 {[%emt 0:00:01]} Nexd5 {[%emt 0:00:12] ...a4 is the strong threat.} (32... Rxd5 $2 {loses.} 33. Rxb6+ $18) 33. Nxa5+ {[%emt 0:00:20]} Ka8 {[%emt 0:00:02]} 34. Qc6+ {[%emt 0:00:32]} Ka7 {[%emt 0:00:03]} 35. Nb3 {[%emt 0:00:01]} Rc8 {[%emt 0:00:13]} 36. Qd6 {[%emt 0:00:01]} Red8 {[%emt 0:00:05]} 37. Qe6 {[%emt 0:00:01]} Nxc3 {[%emt 0:00:02]} 38. Ra1 {[%emt 0:00:05]} Rd1+ {[%emt 0:00:05]} 39. Rxd1 {[%emt 0:00:02]} Nxd1 {[%emt 0:00:00] Weighted Error Value: White=0.72/Black=0.08 (flawless) .  Loses game:     	White=1     	---        Mistake:       	White=5     	Black=1      Inaccurate:     	---       	Black=2      OK:         	White=9     	Black=7      Best:        	White=2     	Black=4      Strong:       	---       	Black=1      Brilliant:      	White=1     	---} 0-1

[Event "CCT Julius Baer-D3 2024"]
[Site "Online"]
[Date "2024.09.27"]
[Round "2.1"]
[White "Gelfand, Boris"]
[Black "Korobov, Anton"]
[Result "1/2-1/2"]
[ECO "A07"]
[WhiteElo "2658"]
[BlackElo "2650"]
[Annotator "RC"]
[PlyCount "99"]
[EventDate "2024.09.25"]
[EventType "swiss"]
[EventCountry "NET"]
[SourceTitle "playchess.com"]
[Source "ChessBase"]
[SourceQuality "1"]
[TimeControl "600+2"]

1. Nf3 {[%emt 0:00:03]} d5 {[%emt 0:00:05]} 2. g3 {[%emt 0:00:01]} c6 {[%emt 0:00:01]} 3. Bg2 {[%emt 0:00:01]} Bg4 {[%emt 0:00:01]} 4. h3 {[%emt 0:00:02]} Bxf3 {[%emt 0:00:05]} 5. Bxf3 {[%emt 0:00:02]} Nd7 {[%emt 0:00:03]} 6. d3 {[%emt 0:00:06]} Ngf6 {[%emt 0:00:11]} 7. O-O {[%emt 0:00:03]} e5 {[%emt 0:00:15]} 8. e4 {[%emt 0:00:04]} Be7 {[%emt 0:00:10]} 9. exd5 {[%emt 0:00:28]} Nxd5 {[%emt 0:00:02]} 10. Nc3 {[%emt 0:00:10]} Nxc3 {[%emt 0:00:10]} 11. bxc3 {[%emt 0:00:02]} O-O {[%emt 0:00:00]} 12. Re1 {[%emt 0:00:13]} Qc7 {[%emt 0:00:05]} 13. Rb1 {[%emt 0:00:21]} Rad8 {[%emt 0:00:06]} 14. Bg2 {[%emt 0:00:12]} Rfe8 {[%emt 0:00:10]} 15. Qg4 {[%emt 0:00:49]} Nf6 {[%emt 0:00:50]} 16. Qa4 {[%emt 0:00:04]} Bc5 {[%emt 0:00:19]} 17. Bg5 {[%emt 0:00:14]} Re6 {[%emt 0:00:09]} 18. Qc4 {[%emt 0:01:14]} Bb6 {[%emt 0:00:21]} 19. Re2 {[%emt 0:01:36]} h6 {[%emt 0:00:08]} 20. Bd2 {[%emt 0:00:01]} Rde8 {[%emt 0:01:54]} 21. Rbe1 {[%emt 0:00:05]} Qd6 {[%emt 0:00:30]} 22. a4 {[%emt 0:00:25]} e4 {[%emt 0:01:57]} 23. dxe4 {[%emt 0:00:30]} Nxe4 {[%emt 0:00:36]} 24. Bf4 {[%emt 0:01:28]} Qc5 {[%emt 0:00:06]} 25. Qxc5 {[%emt 0:00:07]} Nxc5 {[%emt 0:00:02]} 26. Rxe6 {[%emt 0:00:13]} Rxe6 {[%emt 0:00:00]} 27. Ra1 {[%emt 0:00:47]} Ne4 {[%emt 0:00:14]} 28. Bxe4 {[%emt 0:00:11]} Rxe4 {[%emt 0:00:00]} 29. a5 {[%emt 0:00:02]} Bc5 {[%emt 0:00:03]} 30. Kf1 {[%emt 0:00:06]} Kf8 {[%emt 0:00:29]} 31. f3 {[%emt 0:00:29]} Re7 {[%emt 0:00:37]} 32. Ra4 {[%emt 0:00:04]} g5 {[%emt 0:00:19]} 33. Bd2 {[%emt 0:00:01]} a6 {[%emt 0:00:08]} 34. h4 {[%emt 0:00:03]} f6 {[%emt 0:00:01]} 35. h5 {[%emt 0:00:04]} Kf7 {[%emt 0:00:12]} 36. Rc4 {[%emt 0:00:05]} Bd6 {[%emt 0:00:10]} 37. g4 {[%emt 0:00:01]} Re5 {[%emt 0:00:11]} 38. Ra4 {[%emt 0:00:09]} Rb5 {[%emt 0:00:01]} 39. Ke2 {[%emt 0:00:03]} Bc7 {[%emt 0:00:04]} 40. c4 {[%emt 0:00:01]} Rb1 {[%emt 0:00:03]} 41. Rb4 {[%emt 0:00:03]} Rxb4 {[%emt 0:00:01]} 42. Bxb4 {[%emt 0:00:01]} Be5 {[%emt 0:00:06]} 43. Kd3 {[%emt 0:00:03]} Bh2 {[%emt 0:00:01]} 44. Ke4 {[%emt 0:00:03]} Bc7 {[%emt 0:00:06]} 45. Kf5 {[%emt 0:00:02]} Bd8 {[%emt 0:00:01]} 46. c5 {[%emt 0:00:08]} Be7 {[%emt 0:00:03]} 47. Ba3 {[%emt 0:00:02]} Bd8 {[%emt 0:00:01]} 48. Bb4 {[%emt 0:00:01]} Be7 {[%emt 0:00:01]} 49. Ba3 {[%emt 0:00:01]} Bd8 {[%emt 0:00:01]} 50. Bb4 {[%emt 0:00:01]} 1/2-1/2

[Event "CCT Julius Baer-D3 2024"]
[Site "Online"]
[Date "2024.09.27"]
[Round "2.1"]
[White "Svane, Rasmus"]
[Black "Moussard, Jules"]
[Result "1-0"]
[ECO "D35"]
[WhiteElo "2629"]
[BlackElo "2600"]
[Annotator "TA"]
[PlyCount "67"]
[EventDate "2024.09.25"]
[EventType "swiss"]
[EventCountry "NET"]
[SourceTitle "playchess.com"]
[Source "ChessBase"]
[SourceQuality "1"]
[TimeControl "600+2"]

{[%evp 15,67,10,14,13,25,20,25,18,25,31,36,31,16,6,18,14,31,17,45,53,37,21,16,22,47,21,27,17,38,31,48,33,96,36,47,39,42,0,122,113,172,169,227,227,685,578,744,749,863,825,29975,29976,5597,653]} 1. c4 {[%emt 0:00:03]} e6 {[%emt 0:00:04]} 2. Nc3 {[%emt 0:00:02]} d5 {[%emt 0:00:01]} 3. d4 {[%emt 0:00:02]} Nf6 {[%emt 0:00:01]} 4. cxd5 {[%emt 0:00:02]} exd5 {[%emt 0:00:01]} 5. Bg5 {[%emt 0:00:01][%cal Bc1g5,Bg5h4,Bh4g3][%mdl 32]} c6 {[%emt 0:00:01]} 6. e3 {[%emt 0:00:01]} h6 {[%emt 0:00:01]} 7. Bh4 {[%emt 0:00:02]} Be7 {[%emt 0:00:01]} 8. Bd3 {[%emt 0:00:01]} O-O {[%emt 0:00:01]} 9. Nge2 {[%emt 0:00:03]} Ne8 {[%emt 0:00:02]} 10. Bg3 {[%emt 0:00:01]} Nd6 {[%emt 0:00:01]} 11. O-O {[%emt 0:00:37] White has an edge.} Re8 {[%emt 0:00:03]} 12. Qc2 {[%emt 0:00:20]} Bf8 {[%emt 0:00:07]} 13. Rae1 {[%emt 0:00:03]} a5 {[%emt 0:00:39]} 14. Kh1 {[%emt 0:00:47]} Na6 {[%emt 0:00:08]} 15. a3 {[%emt 0:00:02] Inhibits Nb4.} Nc7 {[%emt 0:00:16]} 16. Ng1 {[%emt 0:00:53]} b5 {[%emt 0:00:22]} 17. Nf3 {[%emt 0:00:36]} Nc4 {[%emt 0:01:06]} 18. Ne5 {[%emt 0:00:18]} Nxe5 {[%emt 0:00:01]} 19. Bxe5 {[%emt 0:00:00]} Bd6 {[%emt 0:00:03]} 20. Bxd6 {[%emt 0:00:08]} Qxd6 {[%emt 0:00:00]} 21. Rc1 {[%emt 0:00:26]} Ne6 {[%emt 0:00:29]} 22. Ne2 {[%emt 0:00:11][%cal Bc3e2,Be2f4,Bf4d3,Bd3e5][%mdl 32]} Bd7 {[%emt 0:00:10]} 23. Bf5 {[%emt 0:00:03]} h5 {[%emt 0:00:47]} (23... a4 $14) 24. Bxe6 {[%emt 0:00:52]} ({White should play} 24. Ng3 $16) 24... Qxe6 {[%emt 0:00:02]} 25. Nf4 {[%emt 0:00:02][%csl LRe6,LRh5]} Qh6 {[%emt 0:00:07]} 26. Nd3 {[%emt 0:00:27] aiming for Ne5.} h4 {[%emt 0:00:45]} (26... Bf5 $11) 27. Ne5 $36 {[%emt 0:00:25][%mdl 2048] White is in control.} h3 {[%emt 0:00:26]} 28. Nxd7 $18 {[%emt 0:00:25]} hxg2+ {[%emt 0:00:03]} (28... Qe6 $142) 29. Kxg2 {[%emt 0:00:01]} Re4 $2 {[%emt 0:00:52] [#]} (29... Qe6 30. Ne5 (30. Qxc6 Qg4+ 31. Kh1 Qf3+ 32. Kg1 Qg4+ 33. Kh1 Qf3+ 34. Kg1 Qg4+ 35. Kh1 $11) 30... f6 31. Qxc6 (31. Nxc6 Qg4+ 32. Kh1 Qf3+ 33. Kg1 Qg4+ 34. Kh1 Qf3+ 35. Kg1 Qg4+ 36. Kh1 $11) 31... fxe5 32. Qxe6+ (32. Qxb5 Qg4+ 33. Kh1 Qf3+ 34. Kg1 exd4 $17) 32... Rxe6 33. dxe5 Rxe5) 30. Ne5 {[%emt 0:00:49]} Re8 {[%emt 0:00:27]} 31. Qxc6 {[%emt 0:00:38]} Qg5+ {[%emt 0:00:01]} 32. Kh1 {[%emt 0:00:01]} Re6 {[%emt 0:00:05]} 33. Qa8+ {[%emt 0:00:10]} Kh7 {[%emt 0:00:01]} 34. Qh8+ {[%emt 0:00:01] Weighted Error Value: White=0.18 (very precise) /Black=0.80.  Mistake:       	White=1     	Black=5      Inaccurate:     	White=2     	Black=1      OK:         	White=6     	Black=5      Best:        	White=2     	Black=1} 1-0